bitfinex-derivatives/quotes_ETHF0:USTF0_20241022
["timestamp","ask_amount","ask_price","bid_price","bid_amount"]
[1729602146539,5.55722,2627.4,2627.3,3.2078]
[1729602146736,0.3809,2626.9,2626.8,0.38088]
[1729602146949,1.7509,2626.9,2626.8,0.38088]
[1729602147837,0.3809,2626.9,2626.8,1.75088]
[1729602148049,0.3809,2626.8,2626.7,3.2078]
[1729602148244,3.3509,2626.8,2626.7,3.2078]
[1729602148441,7.9072,2626.8,2626.1,3.2078]
[1729602148656,0.38098,2626.2,2626.1,3.2078]
[1729602149043,4.18898,2626.2,2626.1,3.2078]
[1729602149238,5.31898,2626.2,2626.1,3.2078]
[1729602152838,4.938,2626.2,2625.2,40.8]
[1729602153040,0.38104,2625.8,2625.7,3.2078]
[1729602153248,0.3811,2625.4,2625.3,3.2078]
[1729602153448,3.3511,2625.4,2625.3,3.2078]
[1729602153951,6.7788,2625.4,2624.8,3.2078]
[1729602154149,0.38115,2625.1,2624.9,0.38116]
[1729602154553,0.38116,2625.0,2624.9,0.38116]
[1729602154748,0.38115,2625.1,2624.8,3.2078]
[1729602155047,2.97,2625.4,2625.1,0.38113]
[1729602155248,0.38113,2625.2,2625.1,0.38113]
[1729602156055,0.38113,2625.2,2625.0,0.38115]
[1729602156245,0.38114,2625.1,2625.0,0.38115]
[1729602156444,6.1778,2625.4,2624.8,3.2078]
[1729602156747,0.38114,2625.1,2624.9,0.38116]
[1729602158944,0.38114,2625.1,2624.8,3.2078]
[1729602159443,0.38114,2625.1,2624.9,0.38117]
[1729602159744,0.38114,2625.1,2624.8,3.2078]
[1729602159946,0.38114,2625.2,2625.0,0.38115]
[1729602160144,0.38112,2625.3,2624.8,3.2078]
[1729602160348,0.38111,2625.3,2625.2,0.38113]
[1729602160649,3.58891,2625.4,2624.8,7.13076]
[1729602161051,3.58891,2625.4,2625.3,0.38111]
[1729602161254,0.38112,2625.3,2625.2,0.38112]
[1729602161552,0.38111,2625.3,2625.2,0.38112]
[1729602162648,6.1778,2625.4,2624.8,3.2078]
[1729602162844,6.1778,2625.0,2624.5,0.38122]
[1729602163052,0.38122,2624.6,2624.5,0.38122]
[1729602163253,0.38121,2624.7,2624.6,0.38121]
[1729602163546,2.97,2624.8,2624.4,3.2078]
[1729602163751,2.97,2624.8,2624.5,0.38122]
[1729602163752,0.38123,2624.6,2624.5,0.38122]
[1729602164256,0.38122,2624.7,2624.6,0.38121]
[1729602165152,0.38122,2624.6,2624.5,0.38122]
[1729602165853,0.38123,2624.5,2624.4,3.58904]
[1729602166048,0.38123,2624.5,2624.4,3.2078]
[1729602166242,0.38123,2624.5,2624.4,3.58904]
[1729602166851,2.97,2624.8,2624.4,3.2078]
[1729602167052,0.38123,2624.5,2624.4,3.58904]
[1729602167357,0.38123,2624.5,2624.4,3.2078]
[1729602167550,3.8104,2624.5,2624.0,3.2078]
[1729602167848,0.38125,2624.4,2624.3,0.38125]
[1729602170555,0.38127,2624.3,2624.2,0.38127]
[1729602171260,0.38128,2624.2,2624.1,0.38128]
[1729602174158,0.38126,2624.3,2624.2,0.38126]
[1729602178065,0.38126,2624.4,2624.3,0.38126]
[1729602179368,3.35124,2624.5,2624.4,0.38124]
[1729602179964,2.97,2624.5,2624.1,0.95322]
[1729602180258,4.3348,2624.6,2624.5,0.38123]
[1729602180963,4.71602,2624.6,2624.5,0.38123]
[1729602181859,3.2078,2624.6,2624.5,0.38123]
[1729602182058,3.58896,2625.0,2624.9,0.38117]
[1729602182556,6.55896,2625.0,2624.9,0.38117]
[1729602183459,0.3812,2624.8,2624.7,0.38119]
[1729602183662,0.38123,2624.6,2624.5,0.38122]
[1729602183964,3.35123,2624.6,2624.5,0.38122]
[1729602184164,2.97,2624.6,2624.2,0.95315]
[1729602184360,0.38125,2624.5,2624.4,0.38123]
[1729602186766,2.97,2624.6,2624.1,3.2078]
[1729602186962,2.97,2624.6,2624.3,0.38125]
[1729602186963,0.38126,2624.4,2624.3,0.38125]
[1729602189871,0.38123,2624.6,2624.5,0.38123]
[1729602190068,2.97,2624.7,2624.1,3.2078]
[1729602190271,3.3512,2624.7,2624.6,0.38122]
[1729602190571,7.1616,2624.7,2624.6,0.38122]
[1729602193276,6.7804,2624.7,2624.3,0.95314]
[1729602193474,0.38124,2624.6,2624.5,0.38122]
[1729602197877,3.35121,2624.7,2624.6,0.38122]
[1729602198479,7.16161,2624.7,2624.6,0.38122]
[1729602199383,3.35121,2624.7,2624.6,0.38122]
[1729602200874,7.16161,2624.7,2624.6,0.38122]
[1729602201667,3.35121,2624.7,2624.6,0.38122]
[1729602201872,7.16161,2624.7,2624.6,0.38122]
[1729602202065,7.16161,2624.7,2624.5,0.38122]
[1729602202066,0.38124,2624.6,2624.5,0.38122]
[1729602205680,0.38126,2624.4,2624.3,0.38124]
[1729602206477,3.35126,2624.4,2624.3,0.38124]
[1729602206681,0.38127,2624.3,2624.2,0.38126]
[1729602206980,3.35127,2624.3,2624.2,0.38126]
[1729602212281,1.75127,2624.3,2624.2,0.38126]
[1729602212688,1.75127,2624.3,2624.0,0.95325]
[1729602212689,0.3813,2624.1,2624.0,0.38128]
[1729602212979,1.7513,2624.1,2624.0,0.38128]
[1729602218392,1.37,2624.1,2624.0,0.38128]
[1729602218591,1.37,2624.1,2623.5,4.16121]
[1729602218784,0.3813,2624.0,2623.5,0.95341]
[1729602218978,1.37,2623.6,2623.5,0.38137]
[1729602219280,3.2078,2624.1,2623.5,1.37]
[1729602219482,1.37,2623.9,2623.8,0.38133]
[1729602219690,1.37,2623.8,2623.7,1.75135]
[1729602220090,0.38124,2624.5,2624.4,0.38124]
[1729602220291,1.37,2624.5,2624.4,0.38124]
[1729602221483,1.37,2624.5,2624.3,1.37]
[1729602221683,1.37,2624.4,2624.3,1.37]
[1729602221884,1.37,2624.4,2624.3,1.75126]
[1729602222590,0.38121,2624.7,2624.6,0.38122]
[1729602222791,1.75121,2624.7,2624.6,0.38122]
[1729602223290,5.56161,2624.7,2624.6,0.38122]
[1729602223490,1.75121,2624.7,2624.6,0.38122]
[1729602223682,1.7512,2624.7,2624.6,0.38122]
[1729602224086,5.1804,2624.7,2624.6,0.38122]
[1729602224288,7.1716,2624.7,2624.6,0.38122]
[1729602224483,3.3612,2624.7,2624.6,0.38122]
[1729602224688,7.1716,2624.7,2624.6,0.38122]
[1729602224888,3.3612,2624.7,2624.6,0.38122]
[1729602227187,0.38123,2624.6,2624.5,0.38122]
[1729602227604,0.38125,2624.5,2624.4,0.38124]
[1729602227895,2.98,2624.5,2624.1,0.95323]
[1729602228101,2.98,2624.5,2623.9,4.16109]
[1729602228292,0.38127,2624.3,2624.2,0.38126]
[1729602229197,2.98,2624.3,2623.9,0.95329]
[1729602229389,0.38128,2624.2,2624.1,0.38128]
[1729602229588,3.36128,2624.2,2624.1,0.38128]
[1729602229994,2.98,2624.2,2624.1,0.38128]
[1729602230194,0.38127,2624.3,2624.2,0.38127]
[1729602231100,3.36123,2624.6,2624.1,0.95322]
[1729602231295,3.36123,2624.6,2624.5,0.38123]
[1729602231897,2.98,2624.6,2624.5,0.38123]
[1729602232096,3.36122,2624.6,2624.5,0.38123]
[1729602233100,2.98,2624.6,2624.5,0.38123]
[1729602233303,3.36122,2624.6,2624.5,0.38123]
[1729602233499,2.98,2624.6,2624.5,0.38123]
[1729602237107,3.36122,2624.6,2624.5,0.38123]
[1729602237816,3.36122,2624.6,2623.8,6.1878]
[1729602237817,2.98,2624.6,2623.9,0.99939875]
[1729602238108,0.38125,2624.4,2624.3,0.38124]
[1729602238496,3.36125,2624.4,2624.3,0.38124]
[1729602241917,3.58901,2624.7,2624.6,0.38122]
[1729602244113,3.2078,2624.7,2624.6,0.38122]
[1729602244616,3.589,2624.7,2624.6,0.38122]
[1729602246413,4.959,2624.7,2624.6,0.38122]
[1729602249713,0.38119,2624.8,2624.5,1.37]
[1729602249910,3.2078,2625.0,2624.5,0.38123]
[1729602249911,1.37,2624.6,2624.5,0.38123]
[1729602252016,1.75122,2624.6,2624.5,0.38123]
[1729602255421,0.38126,2624.4,2624.3,0.38124]
[1729602255612,1.75126,2624.4,2624.3,0.38124]
[1729602257021,0.38128,2624.3,2624.2,0.38126]
[1729602257219,1.75128,2624.3,2624.2,0.38126]
[1729602258124,1.37,2624.3,2623.8,4.16113]
[1729602258330,1.37,2623.9,2623.8,3.58913]
[1729602258625,1.75132,2623.9,2623.8,0.38133]
[1729602259627,0.38135,2623.8,2623.7,0.38133]
[1729602259825,1.75135,2623.8,2623.7,0.38133]
[1729602260327,0.38135,2623.8,2623.7,0.38133]
[1729602262925,2.98,2623.8,2623.1,3.2078]
[1729602263221,0.95327,2624.0,2623.5,0.38136]
[1729602263222,2.98,2623.6,2623.5,0.38136]
[1729602263427,3.36136,2623.6,2623.5,0.38136]
[1729602264629,3.36136,2623.6,2623.2,0.3814]
[1729602264630,0.38142,2623.3,2623.2,0.3814]
[1729602266327,0.38144,2623.2,2623.1,0.38142]
[1729602267823,3.36144,2623.2,2623.1,0.38142]
[1729602268125,0.38144,2623.1,2623.0,0.38143]
[1729602269118,2.98,2623.2,2622.7,0.95373]
[1729602269331,3.36142,2623.2,2623.1,0.38143]
[1729602270733,2.98,2623.2,2623.1,0.38143]
[1729602271630,3.36142,2623.2,2623.1,0.38143]
[1729602272732,0.38144,2623.1,2623.0,0.38144]
[1729602272937,0.38147,2623.0,2622.9,0.38145]
[1729602273130,3.36147,2623.0,2622.9,0.38145]
[1729602273433,0.3815,2622.7,2622.6,0.3815]
[1729602273629,3.3615,2622.7,2622.6,0.38149]
[1729602273829,0.38152,2622.6,2622.5,0.38151]
[1729602274030,3.36151,2622.7,2622.6,0.38151]
[1729602275734,0.38152,2622.6,2622.5,0.38151]
[1729602276227,0.38152,2622.6,2621.9,4.16182]
[1729602276228,3.8128,2622.6,2621.9,4.16182]
[1729602276426,2.98,2622.1,2622.0,0.38159]
[1729602277830,2.98,2622.3,2622.2,0.38156]
[1729602278936,3.36155,2622.3,2622.2,0.38156]
[1729602279330,2.98,2622.3,2622.2,0.38156]
[1729602284330,3.2078,2622.6,2622.5,0.38152]
[1729602284535,4.70731,2622.6,2622.5,0.38152]
[1729602284838,11.26011,2622.6,2622.5,0.38152]
[1729602285537,10.14211,2622.6,2622.5,0.38152]
[1729602286638,0.38153,2622.5,2622.4,0.38152]
[1729602286837,1.75153,2622.5,2622.4,0.38152]
[1729602288534,1.37,2622.5,2622.1,0.95395]
[1729602288729,1.37,2622.2,2622.1,0.38158]
[1729602288939,1.37,2622.2,2621.9,4.16182]
[1729602289144,1.37,2622.0,2621.9,3.58941]
[1729602289340,1.37,2622.0,2621.9,0.38161]
[1729602297740,1.75159,2622.0,2621.9,0.38161]
[1729602298140,1.37,2622.0,2621.9,0.38161]
[1729602298343,1.75159,2622.0,2621.9,0.38161]
[1729602299355,0.38156,2622.2,2622.1,0.38156]
[1729602299656,1.51856,2622.3,2622.2,0.38156]
[1729602300151,1.37,2622.3,2622.2,0.38156]
[1729602300843,4.3448,2622.6,2622.5,0.38152]
[1729602301052,6.09631,2622.6,2622.5,0.38152]
[1729602301243,5.7148,2622.6,2622.5,0.38152]
[1729602301438,4.5778,2622.6,2622.5,0.38152]
[1729602301952,1.37,2622.6,2622.5,0.38152]
[1729602302355,4.72627,2622.9,2622.8,0.38148]
[1729602302645,4.5778,2622.9,2622.8,0.38148]
[1729602303052,4.95926,2622.9,2622.8,0.38148]
[1729602303650,4.5778,2622.9,2622.8,0.38148]
[1729602304350,4.3448,2623.3,2623.2,0.38142]
[1729602304661,1.37,2623.3,2623.2,0.38142]
[1729602304844,3.2078,2623.6,2623.2,0.38142]
[1729602304845,3.2078,2623.6,2623.5,0.38137]
[1729602305045,4.5778,2623.6,2623.5,0.38137]
[1729602306248,6.1878,2623.6,2623.5,0.38137]
[1729602307649,2.98,2623.8,2623.5,0.38137]
[1729602307855,2.98,2623.8,2623.7,0.38135]
[1729602308052,0.38136,2623.7,2623.6,0.38135]
[1729602308256,0.38137,2623.6,2623.5,0.38137]
[1729602308452,0.3814,2623.4,2623.3,0.3814]
[1729602308760,0.38141,2623.3,2623.2,0.38141]
[1729602309358,2.98,2623.4,2622.9,0.95366]
[1729602309558,3.36139,2623.4,2623.3,0.3814]
[1729602310064,0.38141,2623.3,2623.2,0.38141]
[1729602310254,3.3614,2623.4,2623.3,0.3814]
[1729602312458,2.98,2623.4,2622.9,3.2078]
[1729602312665,2.98,2623.1,2623.0,0.38145]
[1729602313053,3.36143,2623.1,2623.0,0.38145]
[1729602314271,3.36141,2623.3,2622.7,0.95371]
[1729602314473,3.3614,2623.3,2623.2,0.38142]
[1729602314780,2.98,2623.4,2622.9,0.95366]
[1729602314976,0.38141,2623.3,2623.2,0.38141]
[1729602315371,0.3814,2623.4,2623.3,0.38139]
[1729602316374,4.1934,2623.4,2623.3,0.38139]
[1729602317169,1.51838,2623.5,2623.4,0.38139]
[1729602317367,3.58917,2623.6,2623.5,0.38137]
[1729602321874,3.58916,2623.6,2623.5,0.38137]
[1729602322872,3.2078,2623.6,2623.5,0.38137]
[1729602324173,3.58916,2623.6,2623.5,0.38137]
[1729602324572,3.2078,2623.6,2623.5,0.38137]
[1729602324878,3.58916,2623.6,2623.5,0.38137]
[1729602325569,0.38136,2623.6,2623.5,0.38137]
[1729602326171,0.38136,2623.7,2623.6,0.38135]
[1729602330383,1.37,2623.7,2623.6,0.38135]
[1729602330582,1.75135,2623.7,2623.6,0.38135]
[1729602332079,1.37,2623.7,2623.6,0.38135]
[1729602332985,1.75135,2623.7,2623.6,0.38135]
[1729602333180,0.38138,2623.6,2623.5,0.38136]
[1729602333383,0.38141,2623.4,2623.3,0.38139]
[1729602333583,1.75141,2623.4,2623.3,0.38139]
[1729602335688,0.38142,2623.3,2623.2,0.38141]
[1729602335985,0.38143,2623.2,2623.1,0.38143]
[1729602336192,1.75143,2623.2,2623.1,0.38143]
[1729602339682,4.16126,2623.5,2623.1,1.75143]
[1729602339683,3.2078,2623.5,2623.1,1.75143]
[1729602339893,7.39126903,2628.5,2623.7,0.38133]
[1729602339894,3.58915,2623.8,2623.7,0.38133]
[1729602340195,4.95915,2623.8,2623.7,0.38133]
[1729602341693,0.38137,2623.6,2623.5,0.38136]
[1729602341886,1.75136,2623.6,2623.5,0.38136]
[1729602342293,0.38136,2623.6,2623.5,0.38136]
[1729602342687,0.3814,2623.4,2623.3,0.38138]
[1729602342889,0.38141,2623.3,2623.2,0.3814]
[1729602344986,0.38141,2623.3,2622.7,4.16151]
[1729602344987,2.98,2623.3,2622.7,4.16151]
[1729602345186,2.98,2623.3,2623.0,0.38144]
[1729602345187,0.38145,2623.1,2623.0,0.38144]
[1729602345597,3.36145,2623.1,2623.0,0.38144]
[1729602346285,2.98,2623.1,2623.0,0.38144]
[1729602347399,3.58925,2623.2,2623.1,0.38147]
[1729602347593,6.1878,2623.2,2623.1,0.38147]
[1729602347897,9.9998,2623.2,2623.1,0.38147]
[1729602348292,10.38125,2623.2,2622.8,0.95369]
[1729602348603,0.38147,2623.1,2623.0,0.38147]
[1729602348897,3.2078,2623.2,2623.1,0.38147]
[1729602353104,9.9998,2623.2,2622.2,0.99652623]
[1729602353306,2.98,2622.7,2622.6,0.38154]
[1729602353603,3.36153,2622.7,2622.6,0.38154]
[1729602353809,7.17433,2622.7,2622.6,0.38154]
[1729602354504,0.38156,2622.5,2622.4,0.38157]
[1729602354703,6.56936,2622.5,2622.4,0.38157]
[1729602355703,6.1878,2622.5,2622.4,0.38157]
[1729602356105,6.56936,2622.5,2622.4,0.38157]
[1729602357497,6.1878,2622.5,2621.7,4.88838]
[1729602357702,6.56937,2622.5,2622.4,0.38157]
[1729602358511,0.38162,2622.1,2622.0,0.38162]
[1729602358805,3.36162,2622.1,2622.0,0.38162]
[1729602360310,2.98,2622.1,2622.0,0.38162]
[1729602361402,2.98,2622.1,2621.8,0.95415]
[1729602361403,4.3258,2622.2,2622.1,0.38162]
[1729602361597,4.7074,2622.2,2622.1,0.38162]
[1729602361802,4.3258,2622.2,2622.1,0.38162]
[1729602363597,3.2078,2622.2,2622.1,0.38162]
[1729602363803,1.118,2622.4,2622.3,0.38159]
[1729602364003,3.2078,2622.5,2622.1,0.38162]
[1729602364203,3.2078,2622.5,2622.4,0.38157]
[1729602365309,1.49955,2622.6,2622.5,0.38156]
[1729602365708,8.1386,2622.6,2621.3,3.2078]
[1729602365908,3.2078,2621.9,2621.3,0.95431]
[1729602366112,2.98,2621.7,2621.6,0.38169]
[1729602366313,2.98,2621.8,2621.7,0.38167]
[1729602367009,3.2078,2621.9,2621.7,0.38167]
[1729602367216,3.36166,2621.8,2621.6,0.38168]
[1729602367416,0.38166,2621.8,2621.7,0.38167]
[1729602367608,3.36166,2621.8,2621.7,0.38167]
[1729602368503,2.98,2621.8,2621.4,0.9543]
[1729602368710,0.38168,2621.7,2621.6,0.38168]
[1729602369103,2.98,2621.8,2621.4,0.9543]
[1729602369308,3.36167,2621.8,2621.7,0.38167]
[1729602370813,0.38168,2621.7,2621.6,0.38168]
[1729602372712,3.36167,2621.8,2621.7,0.38167]
[1729602372914,2.98,2621.8,2621.7,0.38167]
[1729602373317,3.36166,2621.8,2621.7,0.38167]
[1729602376819,2.98,2621.8,2621.7,0.38167]
[1729602377624,3.36166,2621.8,2621.7,0.38167]
[1729602377920,2.98,2621.8,2621.4,0.9543]
[1729602378216,0.38172,2621.5,2621.4,0.38171]
[1729602378406,3.36172,2621.5,2621.4,0.38171]
[1729602378716,0.38173,2621.4,2621.3,0.38173]
[1729602379624,2.98,2621.5,2620.9,0.95448]
[1729602379625,3.93427,2621.5,2620.9,0.95448]
[1729602379819,0.38176,2621.2,2621.1,0.38175]
[1729602380118,3.36176,2621.2,2621.1,0.38175]
[1729602380522,3.36176,2621.2,2621.0,0.38177]
[1729602380523,0.38177,2621.1,2621.0,0.38177]
[1729602380709,0.38177,2621.1,2620.7,0.95453]
[1729602380710,0.38179,2621.0,2620.9,0.38178]
[1729602380911,3.2078,2621.0,2620.9,0.38178]
[1729602381107,3.58958,2621.0,2620.9,0.38178]
[1729602381310,0.3818,2620.9,2620.8,0.3818]
[1729602381517,3.3618,2620.9,2620.8,0.3818]
[1729602381817,2.98,2620.9,2620.8,0.3818]
[1729602382114,3.36179,2620.9,2620.8,0.3818]
[1729602382321,0.38181,2620.8,2620.7,0.38181]
[1729602382920,0.38181,2620.8,2620.3,0.9547]
[1729602382921,2.98,2620.9,2620.3,0.9547]
[1729602383216,2.98,2620.7,2620.6,0.38182]
[1729602383814,0.38186,2620.5,2620.4,0.38185]
[1729602384125,2.98,2620.5,2620.0,1.1548]
[1729602384327,0.38187,2620.4,2620.3,0.38187]
[1729602384817,0.38187,2620.4,2620.2,0.38188]
[1729602384818,0.38189,2620.3,2620.2,0.38188]
[1729602385023,3.36189,2620.3,2620.2,0.38188]
[1729602385218,2.98,2620.3,2620.2,0.38188]
[1729602385413,3.36187,2620.3,2620.2,0.38188]
[1729602385819,2.98,2620.3,2620.2,0.38188]
[1729602386123,3.2078,2620.8,2620.5,0.38184]
[1729602386323,3.2078,2620.8,2620.7,0.38182]
[1729602387516,0.38175,2621.2,2621.1,0.38176]
[1729602387517,3.2078,2621.2,2621.1,0.38176]
[1729602388726,3.2078,2621.2,2621.1,4.19696]
[1729602389219,6.1878,2621.6,2621.5,0.3817]
[1729602389615,3.2078,2621.6,2621.5,0.3817]
[1729602390722,3.2078,2622.1,2621.5,6.7944]
[1729602390925,3.2078,2622.4,2621.9,2.98]
[1729602391118,3.2078,2622.4,2622.3,0.38158]
[1729602391324,3.2078,2622.7,2622.3,3.93396]
[1729602391524,3.2078,2622.7,2622.6,0.38154]
[1729602393039,3.2078,2623.1,2622.6,4.19434]
[1729602393221,3.2078,2623.1,2623.0,0.38148]
[1729602393818,3.2078,2623.1,2623.0,7.17348]
[1729602394835,3.2078,2623.1,2623.0,3.36148]
[1729602395023,3.2078,2623.1,2623.0,0.38148]
[1729602397523,3.58927,2623.1,2622.7,2.98]
[1729602397730,3.2078,2623.1,2623.0,0.38148]
[1729602398536,3.2078,2623.1,2623.0,4.19348]
[1729602399635,3.2078,2623.1,2623.0,7.17348]
[1729602400028,3.2078,2623.1,2623.0,4.19348]
[1729602400332,3.2078,2623.1,2623.0,0.38148]
[1729602401525,3.2078,2623.1,2622.6,0.95386]
[1729602401729,0.38153,2622.7,2622.6,0.38154]
[1729602401928,0.38153,2622.7,2621.9,3.2078]
[1729602401929,0.38153,2622.7,2622.5,0.38154]
[1729602402136,3.2078,2622.8,2622.0,2.98]
[1729602402333,3.2078,2622.8,2622.5,0.38155]
[1729602402334,0.38155,2622.6,2622.5,0.38155]
[1729602402638,3.2078,2622.8,2622.5,0.38154]
[1729602402639,0.38154,2622.7,2622.5,0.38154]
[1729602402933,0.38154,2622.6,2622.5,0.38154]
[1729602403125,0.38153,2622.7,2622.6,0.38154]
[1729602403530,0.38154,2622.6,2622.5,0.38154]
[1729602403732,3.2078,2622.8,2622.2,0.95398]
[1729602403935,3.2078,2622.8,2622.3,2.98]
[1729602404136,3.58932,2622.8,2622.7,0.38153]
[1729602404444,0.38153,2622.7,2622.6,0.38153]
[1729602405131,0.38154,2622.6,2622.5,0.38154]
[1729602405327,0.38156,2622.5,2622.4,0.38156]
[1729602405936,0.38158,2622.4,2622.3,0.38157]
[1729602406134,3.58936,2622.5,2622.4,0.38157]
[1729602407533,0.38156,2622.5,2622.4,0.38157]
[1729602408437,3.2078,2622.8,2622.0,2.98]
[1729602408640,3.58936,2622.5,2622.4,0.38157]
[1729602408843,0.38155,2622.6,2622.5,0.38154]
[1729602409633,3.2078,2622.8,2622.1,0.95404]
[1729602409837,3.2078,2622.8,2622.5,0.38155]
[1729602409838,0.38155,2622.6,2622.5,0.38155]
[1729602410844,3.58932,2622.8,2622.7,0.38153]
[1729602411444,3.2078,2622.8,2622.7,0.38153]
[1729602412649,3.2078,2622.8,2622.4,0.95392]
[1729602412650,0.38149,2623.0,2622.4,3.93392]
[1729602412844,0.38149,2623.0,2621.7,5.11615]
[1729602412845,2.98,2622.7,2621.7,5.11615]
[1729602413040,0.38155,2622.6,2622.5,0.38155]
[1729602414747,0.38155,2622.6,2622.1,0.95401]
[1729602414748,0.38157,2622.5,2622.4,0.38157]
[1729602415148,3.2078,2622.8,2621.9,2.98]
[1729602415349,0.38159,2622.4,2622.3,0.38157]
[1729602417253,3.2078,2622.8,2622.2,2.98]
[1729602417448,3.58932,2622.8,2622.7,0.38153]
[1729602417844,0.38154,2622.7,2622.6,0.38153]
[1729602420754,3.58932,2622.8,2622.7,0.38153]
[1729602421152,0.38153,2622.7,2622.6,0.38153]
[1729602423158,2.98,2622.7,2622.0,3.2078]
[1729602423353,0.38158,2622.4,2622.3,0.38157]
[1729602424159,0.95386,2622.6,2622.1,0.38159]
[1729602424160,0.38161,2622.2,2622.1,0.38159]
[1729602424359,3.36161,2622.2,2622.1,0.38159]
[1729602424752,0.38161,2622.2,2622.1,0.38159]
[1729602425162,0.38161,2622.2,2622.0,3.2078]
[1729602425163,0.38163,2622.1,2622.0,0.38162]
[1729602426153,3.93404,2622.1,2621.4,0.95429]
[1729602426359,3.36167,2621.8,2621.7,0.38165]
[1729602426860,3.2078,2622.2,2621.2,2.98]
[1729602427183,3.2078,2622.2,2621.1,3.2078]
[1729602427184,0.38163,2622.1,2622.0,0.38161]
[1729602427659,0.38165,2622.0,2621.9,0.38163]
[1729602428460,0.38166,2621.9,2621.8,0.38165]
[1729602428851,6.1878,2622.2,2621.5,0.95425]
[1729602429051,0.38165,2621.9,2621.8,0.38164]
[1729602429959,0.38168,2621.7,2621.6,0.38167]
[1729602430165,6.1878,2621.9,2621.4,0.95429]
[1729602430368,0.38167,2621.8,2621.7,0.38166]
[1729602431863,6.1878,2621.9,2621.2,3.93436]
[1729602432072,0.3817,2621.6,2621.5,0.38169]
[1729602433573,0.38171,2621.5,2621.4,0.3817]
[1729602433767,0.38171,2621.5,2621.0,4.16223]
[1729602433966,0.38173,2621.4,2621.3,0.38171]
[1729602435770,3.58949,2621.6,2621.5,0.3817]
[1729602436169,3.2078,2621.6,2621.5,0.3817]
[1729602436564,3.2078,2621.6,2621.3,0.95433]
[1729602436565,0.38168,2621.7,2621.6,0.38168]
[1729602438478,6.56946,2621.9,2621.8,0.38166]
[1729602438677,0.38168,2621.7,2621.6,0.38167]
[1729602438873,0.38167,2621.8,2621.7,0.38166]
[1729602439582,0.38169,2621.7,2621.6,0.38168]
[1729602439776,6.1878,2621.9,2621.4,0.95429]
[1729602439971,6.56945,2621.9,2621.8,0.38166]
[1729602440367,6.1878,2621.9,2621.8,0.38166]
[1729602440768,3.2078,2621.9,2621.8,0.38166]
[1729602441978,3.58944,2621.9,2621.8,0.38166]
[1729602442373,0.38164,2621.9,2621.8,0.38166]
[1729602443671,0.38164,2621.9,2621.8,1.90732938]
[1729602448080,0.38164,2621.9,2621.8,1.52566938]
[1729602451185,0.38164,2621.9,2621.8,1.90732938]
[1729602451979,3.58944,2622.0,2621.9,0.38164]
[1729602452177,3.2078,2622.1,2622.0,0.38163]
[1729602452380,3.2078,2623.0,2622.0,47.5936]
[1729602452584,3.2078,2623.0,2622.5,2.98]
[1729602452890,3.2078,2623.0,2622.9,0.3815]
[1729602453093,0.38151,2622.8,2622.5,1.33542]
[1729602453285,6.1878,2623.0,2622.4,4.16172]
[1729602453479,6.1878,2623.0,2622.8,0.3815]
[1729602453480,0.3815,2622.9,2622.8,0.3815]
[1729602453781,6.1878,2623.0,2622.4,4.16172]
[1729602453981,0.38153,2622.7,2622.6,0.38154]
[1729602454178,0.38154,2622.7,2622.6,0.38154]
[1729602454383,2.98,2622.8,2622.4,3.2078]
[1729602454587,0.38152,2622.8,2622.7,0.38151]
[1729602454890,0.38151,2622.8,2622.7,0.38151]
[1729602456986,0.38151,2622.9,2622.8,0.3815]
[1729602459588,2.98,2623.0,2622.4,4.16172]
[1729602459793,0.38151,2622.8,2622.7,0.38151]
[1729602461193,2.98,2623.0,2622.4,4.16172]
[1729602461390,4.16146,2623.2,2622.8,0.3815]
[1729602461391,0.3815,2622.9,2622.8,0.3815]
[1729602461786,0.38152,2622.8,2622.7,0.38152]
[1729602462594,6.1878,2623.2,2622.4,4.16172]
[1729602462791,0.3815,2622.9,2622.8,0.38149]
[1729602463192,6.1878,2623.2,2622.7,0.38151]
[1729602463193,0.38152,2622.8,2622.7,0.38151]
[1729602464496,0.38151,2622.9,2622.8,0.3815]
[1729602466898,0.38149,2623.0,2622.9,0.38148]
[1729602468391,7.14145,2623.2,2622.5,4.16169]
[1729602468596,7.14145,2623.2,2622.3,2.98]
[1729602468597,2.98,2622.9,2622.3,0.95394]
[1729602468796,0.38153,2622.7,2622.6,0.38152]
[1729602469201,0.38152,2622.8,2622.7,0.38151]
[1729602470396,0.38149,2622.8,2622.7,0.38148]
[1729602471402,2.98,2622.9,2622.3,0.95394]
[1729602471601,0.3815,2622.7,2622.6,0.38149]
[1729602472207,0.3815,2622.8,2622.7,0.38148]
[1729602478200,0.3815,2622.8,2622.5,4.16161]
[1729602478201,0.38151,2622.7,2622.6,0.38149]
[1729602479608,0.38151,2622.7,2622.5,3.2078]
[1729602479609,6.7928,2622.7,2622.2,3.2078]
[1729602479904,0.38155,2622.3,2622.2,0.38156]
[1729602480310,0.38155,2622.4,2622.3,0.38152]
[1729602480623,0.38149,2622.8,2622.7,0.38148]
[1729602480811,0.38148,2622.9,2622.8,0.38146]
[1729602481821,0.38149,2622.7,2622.6,1.14368399]
[1729602482007,3.36149,2622.7,2622.6,1.14368399]
[1729602482212,7.17429,2622.7,2622.6,1.14368399]